fUSD/lending_fUSD_20240501
["ID","MTS","AMOUNT","RATE_DAILY","PERIOD"]
[325137116,1714537841128,-3959.36,0.00010958,2]
[325137117,1714537841137,-500.0,0.00010958,2]
[325137118,1714537841146,-500.0,0.00010958,2]
[325137119,1714537841155,-500.0,0.00010958,2]
[325137120,1714537841165,-500.0,0.00010958,2]
[325137121,1714537841174,-500.0,0.00010958,2]
[325137123,1714537841183,-500.0,0.00010958,2]
[325137125,1714537841192,-500.0,0.00010958,2]
[325137127,1714537841201,-13488.36,0.00010958,2]
[325137129,1714537841210,-631.39196364,0.00010958,2]
[325137131,1714537841220,-500.0,0.00010958,2]
[325137133,1714537841229,-500.0,0.00010958,2]
[325137135,1714537841238,-500.0,0.00010958,2]
[325137137,1714537841248,-500.0,0.00010958,2]
[325137139,1714537841257,-782.97,0.00010958,2]
[325137141,1714537841266,-1550.16,0.00010958,2]
[325137143,1714537841275,-500.0,0.00010958,2]
[325137145,1714537841284,-500.0,0.00010958,2]
[325137147,1714537841294,-500.0,0.00010958,2]
[325137149,1714537841304,-500.0,0.00010958,2]
[325137151,1714537841313,-500.0,0.00010958,2]
[325137153,1714537841323,-500.0,0.00010958,2]
[325137155,1714537841334,-500.0,0.00010958,2]
[325137157,1714537841343,-500.0,0.00010958,2]
[325137159,1714537841352,-500.0,0.00010958,2]
[325137161,1714537841362,-500.0,0.00010958,2]
[325137163,1714537841371,-500.0,0.00010958,2]
[325137166,1714537841381,-500.0,0.00010958,2]
[325137168,1714537841390,-500.0,0.00010958,2]
[325137170,1714537841400,-500.0,0.00010958,2]
[325137172,1714537841409,-925.35,0.00010958,2]
[325137174,1714537841418,-500.0,0.00010958,2]
[325137176,1714537841427,-494.42006413,0.00010958,2]
[325137178,1714537841436,-500.0,0.00010958,2]
[325137180,1714537841445,-1398.97,0.00010958,2]
[325137182,1714537841454,-500.0,0.00010958,2]
[325137184,1714537841463,-500.0,0.00010958,2]
[325137186,1714537841473,-500.0,0.00010958,2]
[325137188,1714537841482,-500.0,0.00010958,2]
[325137190,1714537841492,-3729.09,0.00010958,2]
[325137192,1714537841502,-500.0,0.00010958,2]
[325137194,1714537841511,-500.0,0.00010958,2]
[325137196,1714537841520,-500.0,0.00010958,2]
[325137198,1714537841529,-500.0,0.00010958,2]
[325137200,1714537841538,-500.0,0.00010958,2]
[325137202,1714537841548,-500.0,0.00010958,2]
[325137204,1714537841557,-500.0,0.00010958,2]
[325137206,1714537841566,-500.0,0.00010958,2]
[325137208,1714537841575,-500.0,0.00010958,2]
[325137210,1714537841586,-500.0,0.00010958,2]
[325137212,1714537841595,-622.72,0.00010958,2]
[325137214,1714537841604,-500.0,0.00010958,2]
[325137216,1714537841613,-500.0,0.00010958,2]
[325137218,1714537841622,-532.42,0.00010958,2]
[325137220,1714537841632,-500.0,0.00010958,2]
[325137222,1714537841642,-555.34,0.00010958,2]
[325137224,1714537841651,-500.0,0.00010958,2]
[325137226,1714537841660,-6116.33,0.00010958,2]
[325137228,1714537841670,-500.0,0.00010958,2]
[325137230,1714537841679,-500.0,0.00010958,2]
[325137232,1714537841688,-512.39317909,0.00010958,2]
[325137234,1714537841698,-500.0,0.00010958,2]
[325137236,1714537841707,-503.38086105,0.00010958,2]
[325137238,1714537841716,-500.0,0.00010958,2]
[325137240,1714537841726,-500.0,0.00010958,2]
[325137242,1714537841735,-200.0,0.00010959,2]
[325137244,1714537841745,-2528.35,0.00010959,2]
[325137246,1714537841754,-307.36,0.0001096,2]
[325137248,1714537841763,-307.36,0.0001096,2]
[325137250,1714537841772,-307.36,0.0001096,2]
[325137252,1714537841782,-307.36,0.0001096,2]
[325137254,1714537841791,-292.36057165,0.00011,2]
[325137256,1714537841801,-358.73343022,0.00011,2]
[325137258,1714537841812,-4596.60899149,0.00011,2]
[325137260,1714537841826,-400.0,0.00011,2]
[325137262,1714537841839,-151.50674154,0.00011044,2]
[325137264,1714537841848,-175.83857582,0.00011132,2]
[325137266,1714537841859,-152.29246533,0.00011202,2]
[325137269,1714537841868,-307.36,0.00011222,2]
[325137270,1714537841877,-622.43,0.00011229,2]
[325137273,1714537841886,-500.0,0.00011231,2]
[325137275,1714537841896,-500.0,0.00011232,2]
[325137276,1714537841904,-500.0,0.00011232,2]
[325137279,1714537841914,-500.0,0.00011232,2]
[325137281,1714537841923,-500.0,0.00011232,2]
[325137283,1714537841933,-500.0,0.00011232,2]
[325137285,1714537841942,-500.0,0.00011232,2]
[325137287,1714537841951,-500.0,0.00011232,2]
[325137289,1714537841960,-500.0,0.00011232,2]
[325137291,1714537841969,-500.0,0.00011232,2]
[325137293,1714537841978,-500.0,0.00011232,2]
[325137295,1714537841987,-500.0,0.00011232,2]
[325137297,1714537841996,-500.0,0.00011232,2]
[325137299,1714537842006,-500.0,0.00011232,2]
[325137301,1714537842015,-500.0,0.00011232,2]
[325137303,1714537842025,-500.0,0.00011232,2]
[325137305,1714537842034,-500.0,0.00011232,2]
[325137307,1714537842043,-500.0,0.00011232,2]
[325137309,1714537842053,-733.11,0.00011232,2]
[325137311,1714537842062,-500.0,0.00011232,2]
[325137313,1714537842071,-500.0,0.00011232,2]
[325137315,1714537842081,-500.0,0.00011232,2]
[325137317,1714537842090,-500.0,0.00011232,2]
[325137319,1714537842098,-806.88,0.00011232,2]
[325137321,1714537842107,-500.0,0.00011232,2]
[325137323,1714537842116,-500.0,0.00011232,2]
[325137325,1714537842125,-500.0,0.00011232,2]
[325137327,1714537842134,-626.95,0.00011232,2]
[325137329,1714537842144,-500.0,0.00011232,2]
[325137331,1714537842153,-500.0,0.00011232,2]
[325137333,1714537842162,-500.0,0.00011232,2]
[325137335,1714537842172,-500.0,0.00011232,2]
[325137337,1714537842181,-500.0,0.00011232,2]
[325137339,1714537842189,-500.0,0.00011232,2]
[325137341,1714537842199,-500.0,0.00011232,2]
[325137343,1714537842207,-500.0,0.00011232,2]
[325137345,1714537842217,-500.0,0.00011232,2]
[325137347,1714537842226,-500.0,0.00011232,2]
[325137349,1714537842236,-500.0,0.00011232,2]
[325137351,1714537842245,-500.0,0.00011232,2]
[325137353,1714537842254,-500.0,0.00011232,2]
[325137355,1714537842263,-500.0,0.00011232,2]
[325137357,1714537842273,-500.0,0.00011232,2]
[325137359,1714537842282,-150.0,0.00011232,2]
[325137361,1714537842292,-500.0,0.00011232,2]
[325137363,1714537842301,-500.0,0.00011232,2]
[325137365,1714537842310,-500.0,0.00011232,2]
[325137367,1714537842319,-500.0,0.00011232,2]
[325137369,1714537842328,-500.0,0.00011232,2]
[325137371,1714537842342,-500.0,0.00011232,2]
[325137373,1714537842351,-500.0,0.00011232,2]
[325137375,1714537842361,-500.0,0.00011232,2]
[325137377,1714537842370,-500.0,0.00011232,2]
[325137380,1714537842380,-500.0,0.00011232,2]
[325137382,1714537842389,-500.0,0.00011232,2]
[325137384,1714537842398,-500.0,0.00011232,2]
[325137386,1714537842407,-500.0,0.00011232,2]
[325137388,1714537842417,-500.0,0.00011232,2]
[325137390,1714537842427,-500.0,0.00011232,2]
[325137392,1714537842436,-500.0,0.00011232,2]
[325137394,1714537842446,-500.0,0.00011232,2]
[325137395,1714537842456,-500.0,0.00011232,2]
[325137396,1714537842466,-500.0,0.00011232,2]
[325137397,1714537842476,-500.0,0.00011232,2]
[325137398,1714537842487,-517.27,0.00011232,2]
[325137399,1714537842497,-500.0,0.00011232,2]
[325137400,1714537842507,-500.0,0.00011232,2]
[325137402,1714537842519,-500.0,0.00011232,2]
[325137404,1714537842530,-500.0,0.00011232,2]
[325137406,1714537842540,-500.0,0.00011232,2]
[325137408,1714537842551,-500.0,0.00011232,2]
[325137410,1714537842561,-500.0,0.00011232,2]
[325137412,1714537842571,-500.0,0.00011232,2]
[325137414,1714537842582,-151.95,0.00011232,2]
[325137416,1714537842591,-500.0,0.00011232,2]
[325137418,1714537842600,-500.0,0.00011232,2]
[325137420,1714537842610,-500.0,0.00011232,2]
[325137422,1714537842619,-500.0,0.00011232,2]
[325137424,1714537842629,-500.0,0.00011232,2]
[325137426,1714537842638,-500.0,0.00011232,2]
[325137428,1714537842647,-500.0,0.00011232,2]
[325137430,1714537842656,-500.0,0.00011232,2]
[325137432,1714537842666,-500.0,0.00011232,2]
[325137454,1714537842862,-500.0,0.00011232,2]
[325137456,1714537842872,-500.0,0.00011232,2]
[325137458,1714537842881,-14041.02,0.00011232,2]
[325137460,1714537842891,-874.0,0.00011232,2]
[325137462,1714537842901,-500.0,0.00011232,2]
[325137464,1714537842910,-1334.04,0.00011232,2]
[325137466,1714537842919,-500.0,0.00011232,2]
[325137468,1714537842928,-500.0,0.00011232,2]
[325137470,1714537842937,-1008.25,0.00011232,2]
[325137473,1714537842947,-785.01,0.00011232,2]
[325137475,1714537842956,-500.0,0.00011232,2]
[325137477,1714537842965,-811.79,0.00011232,2]
[325137481,1714537842974,-11261.13,0.00011232,2]
[325137483,1714537842984,-500.0,0.00011232,2]
[325137484,1714537842993,-500.0,0.00011232,2]
[325137486,1714537843003,-500.0,0.00011232,2]
[325137488,1714537843012,-500.0,0.00011232,2]
[325137491,1714537843021,-669.35,0.00011232,2]
[325137493,1714537843030,-4480.31,0.00011232,2]
[325137497,1714537843040,-500.0,0.00011232,2]
[325137499,1714537843049,-500.0,0.00011232,2]
[325137502,1714537843058,-531.58529147,0.00011232,2]
[325137505,1714537843067,-783.68,0.00011232,2]
[325137508,1714537843075,-4262.03,0.00011232,2]
[325137511,1714537843085,-500.0,0.00011232,2]
[325137514,1714537843094,-500.0,0.00011232,2]
[325137517,1714537843103,-784.14,0.00011232,2]
[325137520,1714537843112,-873.04,0.00011232,2]
[325137523,1714537843121,-500.0,0.00011232,2]
[325137526,1714537843130,-500.0,0.00011232,2]
[325137529,1714537843139,-615.27,0.00011232,2]
[325137532,1714537843149,-500.0,0.00011232,2]
[325137535,1714537843159,-500.0,0.00011232,2]
[325137538,1714537843169,-500.0,0.00011232,2]
[325137542,1714537843179,-500.0,0.00011232,2]
[325137544,1714537843188,-500.0,0.00011232,2]
[325137546,1714537843197,-500.0,0.00011232,2]
[325137548,1714537843207,-500.0,0.00011232,2]
[325137550,1714537843216,-1697.9,0.00011232,2]
[325137552,1714537843225,-500.0,0.00011232,2]
[325137554,1714537843234,-1534.49,0.00011232,2]
[325137556,1714537843243,-500.0,0.00011232,2]
[325137558,1714537843252,-500.0,0.00011232,2]
[325137560,1714537843260,-724.73,0.00011232,2]
[325137562,1714537843270,-500.0,0.00011232,2]
[325137564,1714537843279,-500.0,0.00011232,2]
[325137566,1714537843288,-500.0,0.00011232,2]
[325137568,1714537843297,-500.0,0.00011232,2]
[325137570,1714537843306,-500.0,0.00011232,2]
[325137572,1714537843316,-2201.04,0.00011232,2]
[325137574,1714537843324,-500.0,0.00011232,2]
[325137575,1714537843333,-585.62240459,0.00011232,2]
[325137578,1714537843343,-500.0,0.00011232,2]
[325137580,1714537843352,-500.0,0.00011232,2]
[325137582,1714537843361,-500.0,0.00011232,2]
[325137584,1714537843370,-500.0,0.00011232,2]
[325137585,1714537843379,-812.93,0.00011232,2]
[325137587,1714537843388,-504.6982611,0.00011232,2]
[325137589,1714537843397,-778.97,0.00011232,2]
[325137591,1714537843406,-796.72,0.00011232,2]
[325137593,1714537843415,-500.0,0.00011232,2]
[325137596,1714537843425,-500.0,0.00011232,2]
[325137598,1714537843435,-500.0,0.00011232,2]
[325137600,1714537843444,-7125.05,0.00011232,2]
[325137602,1714537843453,-716.53,0.00011232,2]
[325137604,1714537843463,-500.0,0.00011232,2]
[325137606,1714537843472,-500.0,0.00011232,2]
[325137608,1714537843481,-1101.04,0.00011232,2]
[325137610,1714537843490,-500.0,0.00011232,2]
[325137612,1714537843499,-500.0,0.00011232,2]
[325137614,1714537843508,-500.0,0.00011232,2]
[325137616,1714537843517,-580.62,0.00011232,2]
[325137618,1714537843526,-500.0,0.00011232,2]
[325137620,1714537843536,-500.0,0.00011232,2]
[325137622,1714537843544,-887.65,0.00011232,2]
[325137624,1714537843554,-500.0,0.00011232,2]
[325137626,1714537843563,-500.0,0.00011232,2]
[325137628,1714537843572,-500.0,0.00011232,2]
[325137629,1714537843582,-783.79,0.00011232,2]
[325137632,1714537843592,-500.0,0.00011232,2]
[325137633,1714537843601,-563.92625667,0.00011232,2]
[325137635,1714537843610,-1663.09,0.00011232,2]
[325137638,1714537843619,-574.72654684,0.00011232,2]
[325137639,1714537843630,-1496.81,0.00011232,2]
[325137641,1714537843639,-500.0,0.00011232,2]
[325137643,1714537843649,-500.0,0.00011232,2]
[325137647,1714537843658,-500.0,0.00011232,2]
[325137649,1714537843667,-1086.67,0.00011232,2]
[325137652,1714537843677,-500.0,0.00011232,2]
[325137654,1714537843686,-868.7,0.00011232,2]
[325137656,1714537843695,-498.88200709,0.00011232,2]
[325137658,1714537843704,-500.0,0.00011232,2]
[325137660,1714537843713,-500.0,0.00011232,2]
[325137662,1714537843722,-500.0,0.00011232,2]
[325137664,1714537843730,-1224.11,0.00011232,2]
[325137666,1714537843739,-500.0,0.00011232,2]
[325137667,1714537843748,-519.8,0.00011232,2]
[325137669,1714537843757,-2235.84,0.00011232,2]
[325137671,1714537843766,-500.0,0.00011232,2]
[325137673,1714537843775,-1198.56,0.00011232,2]
[325137675,1714537843785,-500.0,0.00011232,2]
[325137677,1714537843794,-4553.38,0.00011232,2]
[325137679,1714537843804,-500.0,0.00011232,2]
[325137681,1714537843814,-500.0,0.00011232,2]
[325137683,1714537843823,-500.0,0.00011232,2]
[325137686,1714537843838,-1340.58,0.00011232,2]
[325137688,1714537843847,-500.5119372,0.00011232,2]
[325137689,1714537843856,-500.0,0.00011232,2]
[325137691,1714537843865,-622.4,0.00011232,2]
[325137693,1714537843874,-2375.24,0.00011232,2]
[325137695,1714537843883,-500.0,0.00011232,2]
[325137697,1714537843892,-3062.54,0.00011232,2]
[325137699,1714537843901,-1114.01,0.00011232,2]
[325137701,1714537843913,-3003.35,0.00011232,2]
[325137704,1714537843923,-500.0,0.00011232,2]
[325137706,1714537843932,-500.0,0.00011232,2]
[325137708,1714537843941,-500.0,0.00011232,2]
[325137710,1714537843951,-1820.5,0.00011232,2]
[325137712,1714537843960,-500.0,0.00011232,2]
[325137714,1714537843969,-500.0,0.00011232,2]
[325137716,1714537843978,-4359.94,0.00011232,2]
[325137718,1714537843987,-500.0,0.00011232,2]
[325137720,1714537843996,-1223.49,0.00011232,2]
[325137722,1714537844005,-7748.32,0.00011232,2]
[325137724,1714537844014,-2113.37,0.00011232,2]
[325137726,1714537844024,-1467.46,0.00011232,2]
[325137727,1714537844033,-500.0,0.00011232,2]
[325137729,1714537844042,-153.1230257,0.00011232,2]
[325137731,1714537844052,-500.0,0.00011232,2]
[325137733,1714537844061,-3959.36,0.00011232,2]
[325137736,1714537844071,-506.47171686,0.00011232,2]
[325137738,1714537844080,-500.0,0.00011232,2]
[325137740,1714537844090,-500.0,0.00011232,2]
[325137742,1714537844100,-500.0,0.00011232,2]
[325137744,1714537844108,-500.0,0.00011232,2]
[325137746,1714537844118,-500.0,0.00011232,2]
[325137748,1714537844126,-500.0,0.00011232,2]
[325137750,1714537844135,-13488.36,0.00011232,2]
[325137752,1714537844144,-500.0,0.00011232,2]
[325137754,1714537844153,-613.81220251,0.00011232,2]
[325137756,1714537844163,-500.0,0.00011232,2]
[325137758,1714537844172,-500.0,0.00011232,2]
[325137760,1714537844181,-782.97,0.00011232,2]
[325137762,1714537844191,-1550.16,0.00011232,2]
[325137764,1714537844200,-500.0,0.00011232,2]
[325137766,1714537844209,-317.52582832,0.00011232,2]
[325137768,1714537844218,-500.0,0.00011232,2]
[325137770,1714537844227,-500.0,0.00011232,2]
[325137772,1714537844236,-500.0,0.00011232,2]
[325137774,1714537844245,-416.90228149,0.00011232,2]
[325137776,1714537844254,-500.0,0.00011232,2]
[325137778,1714537844263,-500.0,0.00011232,2]
[325137780,1714537844273,-557.88563807,0.00011232,2]
[325137782,1714537844282,-500.0,0.00011232,2]
[325137784,1714537844290,-500.0,0.00011232,2]
[325137786,1714537844299,-925.35,0.00011232,2]
[325137788,1714537844308,-500.0,0.00011232,2]
[325137790,1714537844317,-500.0,0.00011232,2]
[325137792,1714537844326,-1398.97,0.00011232,2]
[325137794,1714537844336,-500.0,0.00011232,2]
[325137796,1714537844345,-500.0,0.00011232,2]
[325137798,1714537844355,-500.0,0.00011232,2]
[325137799,1714537844364,-3729.09,0.00011232,2]
[325137802,1714537844374,-500.0,0.00011232,2]
[325137803,1714537844383,-500.0,0.00011232,2]
[325137805,1714537844392,-500.0,0.00011232,2]
[325137807,1714537844401,-500.0,0.00011232,2]
[325137809,1714537844410,-500.0,0.00011232,2]
[325137811,1714537844419,-500.0,0.00011232,2]
[325137814,1714537844429,-500.0,0.00011232,2]
[325137816,1714537844437,-500.0,0.00011232,2]
[325137818,1714537844446,-500.0,0.00011232,2]
[325137820,1714537844456,-622.72,0.00011232,2]
[325137822,1714537844465,-500.0,0.00011232,2]
[325137824,1714537844474,-500.0,0.00011232,2]
[325137826,1714537844483,-532.42,0.00011232,2]
[325137827,1714537844492,-500.0,0.00011232,2]
[325137830,1714537844501,-555.34,0.00011232,2]
[325137832,1714537844511,-500.0,0.00011232,2]
[325137833,1714537844520,-6116.33,0.00011232,2]
[325137835,1714537844529,-500.0,0.00011232,2]
[325137838,1714537844539,-500.0,0.00011232,2]
[325137840,1714537844548,-500.0,0.00011232,2]
[325137842,1714537844557,-159.99,0.00011284,2]
[325137844,1714537844567,-152.29246533,0.00011297,2]
[325137846,1714537844576,-9227.11298756,0.00011395,7]
[325137848,1714537844585,-154.20889232,0.00011467,2]
[325137850,1714537844594,-500.0,0.00011506,2]
[325137851,1714537844604,-500.0,0.00011506,2]
[325137853,1714537844613,-500.0,0.00011506,2]
[325137856,1714537844623,-500.0,0.00011506,2]
[325137858,1714537844632,-500.0,0.00011506,2]
[325137860,1714537844641,-500.0,0.00011506,2]
[325137862,1714537844650,-500.0,0.00011506,2]
[325137864,1714537844660,-500.0,0.00011506,2]
[325137866,1714537844669,-500.0,0.00011506,2]
[325137867,1714537844679,-500.0,0.00011506,2]
[325137870,1714537844688,-500.0,0.00011506,2]
[325137872,1714537844697,-500.0,0.00011506,2]
[325137874,1714537844706,-500.0,0.00011506,2]
[325137876,1714537844717,-500.0,0.00011506,2]
[325137877,1714537844726,-733.11,0.00011506,2]
[325137880,1714537844735,-421.13655324,0.00011506,2]
[325137882,1714537844744,-500.0,0.00011506,2]
[325137884,1714537844755,-500.0,0.00011506,2]
[325137886,1714537844764,-500.0,0.00011506,2]
[325137887,1714537844773,-806.88,0.00011506,2]
[325137890,1714537844783,-500.0,0.00011506,2]
[325137891,1714537844792,-500.0,0.00011506,2]
[325137894,1714537844802,-626.95,0.00011506,2]
[325137896,1714537844812,-500.0,0.00011506,2]
[325137898,1714537844826,-551.75,0.00011506,2]
[325137900,1714537844837,-500.0,0.00011506,2]
[325137901,1714537844847,-500.0,0.00011506,2]
[325137902,1714537844856,-500.0,0.00011506,2]
[325137903,1714537844866,-539.95343065,0.00011506,2]
[325137904,1714537844875,-500.0,0.00011506,2]
[325137905,1714537844884,-500.0,0.00011506,2]
[325137906,1714537844893,-500.0,0.00011506,2]
[325137908,1714537844902,-500.0,0.00011506,2]
[325137910,1714537844913,-500.0,0.00011506,2]
[325137912,1714537844922,-500.0,0.00011506,2]
[325137914,1714537844931,-500.0,0.00011506,2]
[325137916,1714537844940,-500.0,0.00011506,2]
[325137918,1714537844948,-500.0,0.00011506,2]
[325137920,1714537844958,-150.0,0.00011506,2]
[325137922,1714537844967,-500.0,0.00011506,2]
[325137924,1714537844976,-500.0,0.00011506,2]
[325137926,1714537844986,-500.0,0.00011506,2]
[325137928,1714537844995,-500.0,0.00011506,2]
[325137930,1714537845004,-500.0,0.00011506,2]
[325137932,1714537845013,-500.0,0.00011506,2]
[325137934,1714537845022,-504.9304448,0.00011506,2]
[325137936,1714537845032,-500.0,0.00011506,2]
[325137938,1714537845041,-500.0,0.00011506,2]
[325137940,1714537845050,-500.0,0.00011506,2]
[325137942,1714537845059,-252.73,0.00011506,2]
[325137944,1714537845068,-500.0,0.00011506,2]
[325137946,1714537845077,-500.0,0.00011506,2]
[325137948,1714537845086,-500.0,0.00011506,2]
[325137950,1714537845095,-482.58,0.00011506,2]
[325137952,1714537845104,-560.52,0.00011506,2]
[325137954,1714537845113,-500.0,0.00011506,2]
[325137956,1714537845123,-517.27,0.00011506,2]
[325137958,1714537845132,-500.0,0.00011506,2]
[325137960,1714537845141,-500.0,0.00011506,2]
[325137962,1714537845150,-500.0,0.00011506,2]
[325137964,1714537845159,-500.0,0.00011506,2]
[325137966,1714537845169,-500.0,0.00011506,2]
[325137968,1714537845178,-500.0,0.00011506,2]
[325137970,1714537845186,-500.0,0.00011506,2]
[325137972,1714537845195,-500.0,0.00011506,2]
[325137974,1714537845204,-500.0,0.00011506,2]
[325137976,1714537845213,-500.0,0.00011506,2]
[325137978,1714537845223,-500.0,0.00011506,2]
[325137980,1714537845231,-500.0,0.00011506,2]
[325137982,1714537845240,-500.0,0.00011506,2]
[325137984,1714537845249,-500.0,0.00011506,2]
[325137986,1714537845258,-500.0,0.00011506,2]
[325137988,1714537845267,-500.0,0.00011506,2]
[325137990,1714537845276,-500.0,0.00011506,2]
[325137992,1714537845285,-500.0,0.00011506,2]
[325137994,1714537845294,-14041.02,0.00011506,2]
[325137996,1714537845303,-874.0,0.00011506,2]
[325137998,1714537845312,-500.0,0.00011506,2]
[325138000,1714537845321,-1334.04,0.00011506,2]
[325138002,1714537845330,-500.0,0.00011506,2]
[325138004,1714537845340,-500.0,0.00011506,2]
[325138006,1714537845350,-1008.25,0.00011506,2]
[325138008,1714537845359,-785.01,0.00011506,2]
[325138010,1714537845368,-500.0,0.00011506,2]
[325138012,1714537845378,-811.79,0.00011506,2]
[325138014,1714537845387,-11261.13,0.00011506,2]
[325138016,1714537845396,-500.0,0.00011506,2]
[325138018,1714537845404,-500.0,0.00011506,2]
[325138020,1714537845414,-500.0,0.00011506,2]
[325138022,1714537845423,-500.0,0.00011506,2]
[325138024,1714537845433,-669.35,0.00011506,2]
[325138026,1714537845443,-4480.31,0.00011506,2]
[325138028,1714537845451,-500.0,0.00011506,2]
[325138030,1714537845460,-500.0,0.00011506,2]
[325138032,1714537845470,-783.68,0.00011506,2]
[325138034,1714537845480,-4262.03,0.00011506,2]
[325138036,1714537845489,-500.0,0.00011506,2]
[325138038,1714537845499,-500.0,0.00011506,2]
[325138040,1714537845508,-784.14,0.00011506,2]
[325138042,1714537845517,-873.04,0.00011506,2]
[325138044,1714537845526,-500.0,0.00011506,2]
[325138046,1714537845536,-500.0,0.00011506,2]
[325138047,1714537845545,-615.27,0.00011506,2]
[325138049,1714537845554,-500.0,0.00011506,2]
[325138052,1714537845564,-500.0,0.00011506,2]
[325138053,1714537845573,-500.0,0.00011506,2]
[325138056,1714537845584,-500.0,0.00011506,2]
[325138057,1714537845594,-500.0,0.00011506,2]
[325138059,1714537845603,-500.0,0.00011506,2]
[325138061,1714537845613,-500.0,0.00011506,2]
[325138063,1714537845621,-1697.9,0.00011506,2]
[325138065,1714537845631,-500.0,0.00011506,2]
[325138083,1714537845784,-1534.49,0.00011506,2]
[325138086,1714537845795,-500.0,0.00011506,2]
[325138088,1714537845804,-724.73,0.00011506,2]
[325138089,1714537845814,-500.0,0.00011506,2]
[325138091,1714537845823,-500.0,0.00011506,2]
[325138094,1714537845837,-500.0,0.00011506,2]
[325138095,1714537845846,-500.0,0.00011506,2]
[325138097,1714537845855,-500.0,0.00011506,2]
[325138099,1714537845865,-2201.04,0.00011506,2]
[325138102,1714537845874,-500.0,0.00011506,2]
[325138105,1714537845883,-500.0,0.00011506,2]
[325138108,1714537845893,-500.0,0.00011506,2]
[325138110,1714537845902,-500.0,0.00011506,2]
[325138112,1714537845911,-812.93,0.00011506,2]
[325138114,1714537845920,-778.97,0.00011506,2]
[325138116,1714537845929,-796.72,0.00011506,2]
[325138118,1714537845938,-500.0,0.00011506,2]
[325138119,1714537845947,-500.0,0.00011506,2]
[325138121,1714537845957,-500.0,0.00011506,2]
[325138123,1714537845967,-7125.05,0.00011506,2]
[325138125,1714537845976,-716.53,0.00011506,2]
[325138127,1714537845985,-500.0,0.00011506,2]
[325138129,1714537845994,-1101.04,0.00011506,2]
[325138131,1714537846004,-500.0,0.00011506,2]
[325138133,1714537846013,-500.0,0.00011506,2]
[325138135,1714537846023,-500.0,0.00011506,2]
[325138137,1714537846031,-580.62,0.00011506,2]
[325138139,1714537846040,-500.0,0.00011506,2]
[325138141,1714537846049,-500.0,0.00011506,2]
[325138143,1714537846058,-887.65,0.00011506,2]
[325138145,1714537846068,-500.0,0.00011506,2]
[325138147,1714537846077,-500.0,0.00011506,2]
[325138149,1714537846087,-783.79,0.00011506,2]
[325138151,1714537846096,-500.0,0.00011506,2]
[325138153,1714537846105,-1663.09,0.00011506,2]
[325138155,1714537846114,-1496.81,0.00011506,2]
[325138157,1714537846123,-500.0,0.00011506,2]
[325138159,1714537846132,-500.0,0.00011506,2]